Cogmind - Beta 12 @@@ ROGUE MODE // 2023.03.14 @ 08:05:41 Player: kawyua Result: Destroyed by Alpha 7 with Multirail Performance ------------- Evolutions (9) 4500 Regions Visited (15) 3000 Robots Destroyed (84) 420 Value Destroyed (2586) 2586 Prototype IDs (8) 160 Alien Tech Used (0) 0 Bonus (1208) 1208 TOTAL SCORE: 11874 Bonus ------- High Alert Combat Kills 112 Follower Combat Kills 1298 Friendly Fire -202 Cogmind --------- Core Integrity 0/1600 Matter 84/300 Energy 55/100 System Corruption 6% Temperature Cool (0) Movement Flying (45) Location -1/Command Parts ------- > --- POWER (2) -------- (None) > --- PROPULSION (9) --- Improved Gyrokinetic Inverter Impulse Thruster Array > --- UTILITY (12) ----- Advanced Terrain Scan Processor > --- WEAPON (2) ------- (None) > --- INVENTORY (5) ---- Advanced Force Booster Peak State ------------ > --- POWER ------------ Light Antimatter Reactor Light Quantum Reactor > --- PROPULSION ------- Cooled VTOL Module Nuclear Pulse Thruster Cooled Nuclear Pulse Thruster Nuclear Pulse Array Impulse Thruster Array Impulse Thruster Array > --- UTILITY ---------- Advanced Power Amplifier Advanced Thermal Generator Weight Redist. System Advanced Sensor Array Advanced Signal Interpreter Advanced Signal Interpreter Long-range Terrain Scanner Advanced Terrain Scan Processor Improved Transmission Jammer Advanced ECM Suite Advanced Reaction Control System Phase Shifter > --- WEAPON ----------- Heavy Phase Cannon > --- INVENTORY -------- Nuclear Pulse Array Advanced Force Booster Micro-nuke Launcher [Rating: 149] Favorites ----------- Power Ion Engine Engine Ion Engine Power Core Light Fission Core Reactor Light Antimatter Reactor Propulsion Aluminum Leg Treads Light Treads Leg Aluminum Leg Wheel Wheel Hover Unit Improved Gyrokinetic Inverter Flight Unit VTOL Module Utility Advanced Terrain Scan Processor Device Improved Terrain Scanner Storage Large Storage Unit Processor Advanced Terrain Scan Processor Protection Hardened Medium Armor Plating Weapon Beam Cannon Energy Gun Small Laser Energy Cannon Beam Cannon Ballistic Gun Assault Rifle Ballistic Cannon Improved Light Cannon Launcher Rocket Launcher Special Weapon Improved Plasma Cutter Slashing Weapon Katana Piercing Weapon Enhanced Force Lance Build | -11 -10 -9 -8 -7 -7 -7 -6 -6 -6 -5 -4 -3 -2 -1 -1 ------- Run | Jun Mat Mat Mat Fac Was Fac Fac Ext Cet Fac Fac Res Res Acc Com Slots Evolved 18 | . . 2 2 2 . . 2 . . 2 2 2 2 2 . Power 1 | . . . . 1 . . . . . . . . . . . Propulsion 7 | . . 1 1 1 . . 1 . . . 1 2 . . . Utility 10 | . . 1 1 . . . 1 . . 2 1 . 2 2 . Weapon . | . . . . . . . . . . . . . . . . Parts Attached 188 | 6 16 22 16 16 . 3 5 8 . 29 21 9 10 14 13 Power 29 | 1 3 3 1 2 . . 1 2 . 4 4 1 5 1 1 Engine 13 | 1 3 3 . 1 . . . 2 . 3 . . . . . Core 5 | . . . 1 1 . . 1 . . 1 1 . . . . Reactor 11 | . . . . . . . . . . . 3 1 5 1 1 Propulsion 43 | 2 4 6 7 5 . 1 1 1 . 2 3 4 . 2 5 Treads 10 | 2 2 1 5 . . . . . . . . . . . . Leg 8 | . 2 4 2 . . . . . . . . . . . . Wheel 1 | . . 1 . . . . . . . . . . . . . Hover 1 | . . . . . . . . . . . . . . . 1 Flight 23 | . . . . 5 . 1 1 1 . 2 3 4 . 2 4 Utility 64 | 1 2 4 5 5 . . 2 3 . 17 6 3 4 9 3 Device 51 | . . 2 4 3 . . 1 2 . 16 5 3 4 8 3 Storage 4 | 1 1 1 1 . . . . . . . . . . . . Processor 6 | . 1 . . 2 . . 1 . . . 1 . . 1 . Hackware . | . . . . . . . . . . . . . . . . Protection 3 | . . 1 . . . . . 1 . 1 . . . . . Artifact . | . . . . . . . . . . . . . . . . Weapon 52 | 2 7 9 3 4 . 2 1 2 . 6 8 1 1 2 4 Energy Gun 7 | 1 2 4 . . . . . . . . . . . . . Energy Cannon 13 | . 1 1 1 . . 2 . 1 . 4 2 1 . . . Ballistic Gun 4 | 1 1 2 . . . . . . . . . . . . . Ballistic Cannon 2 | . . . 1 1 . . . . . . . . . . . Launcher 18 | . 3 2 1 3 . . 1 1 . 1 2 . 1 1 2 Special Weapon 1 | . . . . . . . . . . 1 . . . . . Impact Weapon . | . . . . . . . . . . . . . . . . Slashing Weapon 4 | . . . . . . . . . . . 4 . . . . Piercing Weapon 3 | . . . . . . . . . . . . . . 1 2 Special Melee Weapon . | . . . . . . . . . . . . . . . . Unidentified Prototypes 8 | . . . . 3 . 1 . . . 1 1 1 . . 1 Parts Lost 62 | . 6 7 7 . . . 1 6 . 1 2 . . 21 11 Power 9 | . 2 1 . . . . . 1 . . 1 . . 3 1 Propulsion 22 | . 2 2 4 . . . 1 3 . . . . . 6 4 Utility 20 | . . 1 2 . . . . 2 . . 1 . . 10 4 Weapon 11 | . 2 3 1 . . . . . . 1 . . . 2 2 Highest Loss Streak 12 | . 3 5 4 . . . 1 3 . 1 2 . . 12 6 To Critical Strikes 2 | . . . 1 . . . . . . . . . . 1 . Average Slot Usage (%) 83 | . 93 89 86 83 92 92 90 80 53 77 85 88 84 63 23 Engine 6 | . 11 8 7 . 7 7 6 5 . 5 1 . . . . Core 1 | . . . 1 8 7 7 6 4 . 1 4 . . . . Reactor 1 | . . . . . . . . . . . 4 9 7 6 1 Treads 5 | . 19 1 14 16 . . . . . . . . . . . Leg 6 | . 5 25 15 . . . . . . . . . . . . Flight 14 | . . . . 16 38 38 37 31 20 26 29 31 26 20 5 Device 13 | . . 4 7 10 15 15 20 17 13 20 29 27 33 26 6 Storage 6 | . 21 11 9 4 . . . . . . . . . . . Processor 9 | . 5 11 9 13 15 15 13 13 13 11 10 9 8 6 4 Protection 1 | . . 4 7 . . . . . . 1 . . . . . Energy Gun 1 | . 7 1 . . . . . . . . . . . . . Energy Cannon 4 | . 6 4 8 4 . 2 6 3 6 4 3 2 4 2 . Ballistic Gun 4 | . 11 15 2 . . . . . . . . . . . . Launcher 1 | . 2 1 . 3 7 4 . 2 . 1 . 1 . . . Naked Turns . | . . . . . . . . . . . . . . . . Heaviest Build 65 | 12 17 42 65 53 18 22 26 32 13 39 54 54 65 62 30 Greatest Support 80 | 40 40 30 80 80 21 22 25 29 14 39 47 68 68 73 32 Greatest Overweight (x) 3 | . . 2 3 . . 1 1 1 . 1 3 . . 2 1 Average Overweight (x) . | . . . . . . . . . . . . . . . . Largest Inventory Capacity 20 | 8 8 15 20 20 5 5 5 5 5 5 5 5 5 5 5 Average Capacity 8 | 6 8 14 16 13 5 5 5 5 5 5 5 5 5 5 5 Most Carried 18 | 5 8 15 18 16 5 5 5 5 5 5 5 5 5 5 5 Average Carried 7 | 2 7 11 15 10 5 4 4 4 5 4 4 4 3 2 2 Final Capacity 20 | 8 8 15 20 5 5 5 5 5 5 5 5 5 5 5 5 Final Carried 15 | 4 6 15 15 5 5 5 5 5 5 4 5 5 5 . 1 Class Distribution -------------------- 45% | Mutant 13% | Infiltrator-Sprinter 9% | Sprinter 9% | Scavenger-Mutant 9% | Scout 4% | Infiltrator-Ninja 3% | Infiltrator-Mutant 3% | Infiltrator-Scout Dominant Class ---------------- Mutant | -10/Materials Mutant | -9/Materials Mutant | -8/Materials Scout | -7/Factory Scout | -7/Waste Scout | -7/Factory Scout | -6/Factory Sprinter | -6/Extension Sprinter | -6/Cetus Sprinter | -5/Factory Infiltrator-Sprinter | -4/Factory Infiltrator-Sprinter | -3/Research Infiltrator-Ninja | -2/Research Infiltrator-Scout | -1/Access Mutant | -1/Command Resources | -11 -10 -9 -8 -7 -7 -7 -6 -6 -6 -5 -4 -3 -2 -1 -1 ----------- Run | Jun Mat Mat Mat Fac Was Fac Fac Ext Cet Fac Fac Res Res Acc Com Matter Collected 2445 | 177 344 483 291 4 160 30 61 115 . . 254 272 194 50 10 Remotely . | . . . . . . . . . . . . . . . . Salvage Created 2777 | . 422 833 577 . . 72 54 25 . . 254 323 . 132 85 Parts 174 | . 26 61 33 . . 4 4 4 . . 5 21 . 10 6 Haulers Intercepted . | . . . . . . . . . . . . . . . . Recyclers Shooed 2 | . . 2 . . . . . . . . . . . . . Parts Field Recycled . | . . . . . . . . . . . . . . . . Retrieved Matter . | . . . . . . . . . . . . . . . . Parts Self-Destructed . | . . . . . . . . . . . . . . . . Prevented . | . . . . . . . . . . . . . . . . Kills | -11 -10 -9 -8 -7 -7 -7 -6 -6 -6 -5 -4 -3 -2 -1 -1 ------- Run | Jun Mat Mat Mat Fac Was Fac Fac Ext Cet Fac Fac Res Res Acc Com Combat Hostiles Destroyed 60 | . 13 20 11 . . 1 . 2 . . . . . 6 7 Guns 18 | . 2 15 1 . . . . . . . . . . . . Cannons 18 | . 8 1 8 . . 1 . . . . . . . . . AOE 24 | . 3 4 2 . . . . 2 . . . . . 6 7 Classes Destroyed 12 | . 3 4 1 . . . 1 . . . 1 . . 1 1 Worker 4 | . 1 2 . . . . . . . . . 1 . . . Builder 3 | . . 2 . . . . . . . . . 1 . . . Tunneler 3 | . . . . . . . . . . . 1 2 . . . Recycler 9 | . . 3 2 . . . . . . . 2 2 . . . Operator 2 | . . . . . . . 1 . . . 1 . . . . Drone 1 | . . . . . . . . . . . . . . . 1 Watcher 3 | . . 1 . . . . . . . . . 1 . 1 . Swarmer 28 | . 3 10 2 . . . . 2 . . . . . 5 6 Cutter 1 | . . . . . . . . . . . . . . 1 . Grunt 20 | . 10 6 4 . . . . . . . . . . . . Brawler 1 | . . . 1 . . . . . . . . . . . . Sentry 9 | . . 4 4 . . 1 . . . . . . . . . Thug 1 | . . . . . . . 1 . . . . . . . . Best Kill Streak 9 | . 3 9 2 . . 1 1 2 . . 1 2 . 6 6 Combat Bots Only 7 | . 3 7 2 . . 1 . 2 . . . . . 6 6 Max Kills in Single Turn 4 | . 3 2 2 . . 1 1 2 . . 1 1 . 4 4 Gunslinging . | . . . . . . . . . . . . . . . . Exploded 4 | . 3 1 2 . . . . 2 . . . . . 4 4 Melee . | . . . . . . . . . . . . . . . . Uniques/NPCs Destroyed . | . . . . . . . . . . . . . . . . Combat | -11 -10 -9 -8 -7 -7 -7 -6 -6 -6 -5 -4 -3 -2 -1 -1 -------- Run | Jun Mat Mat Mat Fac Was Fac Fac Ext Cet Fac Fac Res Res Acc Com Damage Taken 9353 | . 1206 1073 1040 . . 41 99 569 . 298 364 454 24 1848 2337 Core 2874 | . 236 241 122 . . 23 27 117 . 60 273 162 . 339 1274 Absorbed by Shields 206 | . . 80 59 . . . . 67 . . . . . . . Core Remaining (%) 75 | 100 5 39 77 . . 96 . . 83 94 76 87 100 . . Volleys Fired 390 | . 74 65 52 1 . 8 17 41 . 55 33 . 16 24 4 Largest 2 | . 2 2 2 2 . 1 1 1 . 2 1 . 1 1 1 Hottest 100 | . 100 80 99 99 . 65 65 65 . 90 90 . 90 90 52 Shots Fired 543 | . 135 130 78 2 . 8 17 41 . 56 32 . 16 24 4 Gun 210 | . 84 113 13 . . . . . . . . . . . . Cannon 296 | . 45 7 64 2 . 8 16 36 . 52 31 . 16 19 . Launcher 34 | . 6 10 1 . . . 1 5 . 1 1 . . 5 4 Special 3 | . . . . . . . . . . 3 . . . . . Kinetic 162 | . 49 86 26 1 . . . . . . . . . . . Thermal 347 | . 80 34 51 1 . 8 16 36 . 55 31 . 16 19 . Explosive 34 | . 6 10 1 . . . 1 5 . 1 1 . . 5 4 Electromagnetic . | . . . . . . . . . . . . . . . . Robot Hit Streak 13 | . 12 11 13 13 . 2 3 2 . 1 7 . . 4 1 Robot Miss Streak 9 | . 9 6 3 . . 3 2 3 . 4 4 . 1 6 7 Penetration Max . | . . . . . . . . . . . . . . . . Secondary Targets 3 | . . 3 . . . . . . . . . . . . . Max Gunslinging Chain 1 | . . 1 . . . . . . . . . . . . . Shots Hit Robots 256 | . 70 77 56 2 . 3 4 7 . 1 13 15 . 7 1 Core Hits 140 | . 23 45 19 . . 1 2 9 . 2 5 6 . 15 13 Critical Kills . | . . . . . . . . . . . . . . . . Critical Parts Destroyed . | . . . . . . . . . . . . . . . . Critical Strikes 1 | . . . . . . . . . . . . 1 . . . Sever 1 | . . . . . . . . . . . . 1 . . . Melee Attacks 63 | . . . . . . . . . . . 10 25 . 5 23 Impact . | . . . . . . . . . . . . . . . . Slashing 35 | . . . . . . . . . . . 10 25 . . . Piercing 28 | . . . . . . . . . . . . . . 5 23 Sneak Attacks 10 | . . . . . . . . . . . 2 8 . . . Combat Hostiles . | . . . . . . . . . . . . . . . . Follow-up Attacks . | . . . . . . . . . . . . . . . . Damage Inflicted 7788 | . 1190 1419 1103 41 . 81 213 498 . 118 582 835 . 910 798 Guns 1337 | . 363 877 97 . . . . . . . . . . . . Cannons 2603 | . 594 87 893 41 . 81 164 192 . 34 277 . . 240 . Explosions 2756 | . 223 455 113 . . . 49 306 . 67 75 . . 670 798 Melee 1065 | . . . . . . . . . . . 230 835 . . . Ramming 10 | . 10 . . . . . . . . . . . . . . Kinetic 1245 | . 201 661 360 23 . . . . . . . . . . . Thermal 2712 | . 756 303 630 18 . 81 164 192 . 51 277 . . 240 . Explosive 2756 | . 223 455 113 . . . 49 306 . 67 75 . . 670 798 Electromagnetic . | . . . . . . . . . . . . . . . . Impact . | . . . . . . . . . . . . . . . . Slashing 1065 | . . . . . . . . . . . 230 835 . . . Piercing . | . . . . . . . . . . . . . . . . Highest Corruption 6 | . . 3 . . . . . . . 1 3 2 . . 6 Average Corruption 2 | . . 2 . . . . . . . 1 1 2 . . 3 Corruption Purged . | . . . . . . . . . . . . . . . . Corruption Blocked . | . . . . . . . . . . . . . . . . Effects 32 | . . 20 . . . . . . . 2 9 1 . . . Message Errors 10 | . . 6 . . . . . . . 1 2 1 . . . Matter Fused 7 | . . 5 . . . . . . . . 2 . . . . Heat Flow Errors 4 | . . 2 . . . . . . . 1 1 . . . . Energy Discharges 3 | . . 1 . . . . . . . . 2 . . . . Parts Rejected 1 | . . 1 . . . . . . . . . . . . . Data Loss (minor) 3 | . . 2 . . . . . . . . 1 . . . . Data Loss (major) 1 | . . 1 . . . . . . . . . . . . . Misfires 2 | . . 2 . . . . . . . . . . . . . Weapon Failures 1 | . . . . . . . . . . . 1 . . . . Overload Shots . | . . . . . . . . . . . . . . . . Overflow Damage 498 | . 27 . 42 . . . 6 63 . . 104 167 . 55 34 Projectiles 114 | . 1 . 42 . . . 6 . . . 13 . . 52 . Explosions 126 | . 26 . . . . . . 63 . . . . . 3 34 Melee 258 | . . . . . . . . . . . 91 167 . . . Knockbacks 7 | . . . 6 1 . . . . . . . . . . . Impact . | . . . . . . . . . . . . . . . . Kinetic 7 | . . . 6 1 . . . . . . . . . . . Secondary . | . . . . . . . . . . . . . . . . Self-Inflicted Damage 394 | . . 43 . . . . . 101 . . . . . 202 48 Shots 8 | . . 2 . . . . . 1 . . . . . 4 1 Rammed 1 | . 1 . . . . . . . . . . . . . . Targets Rammed 1 | . 1 . . . . . . . . . . . . . . Kicked . | . . . . . . . . . . . . . . . . Crushed . | . . . . . . . . . . . . . . . . Highest Temperature 619 | . 383 225 351 18 104 129 129 283 . 343 619 233 381 252 . Average Temperature 103 | . 104 59 124 9 56 33 42 83 . 71 160 94 120 117 . Received Heat Transfer 1839 | . 699 300 541 . . 18 36 143 . 18 12 18 . 9 45 Effects 32 | . 1 . 2 . . . . 1 . 4 11 2 7 4 . Shutdowns 8 | . . . . . . . . . . . 5 . 3 . . Energy Bleed 5 | . 1 . . . . . . . . 2 . . 1 1 . Interference 16 | . . . 1 . . . . 1 . 2 4 2 3 3 . Matter Decay 1 | . . . . . . . . . . . 1 . . . . Short Circuit 1 | . . . 1 . . . . . . . . . . . . Damage (core) 1 | . . . . . . . . . . . 1 . . . . Siege Activations . | . . . . . . . . . . . . . . . . Robots Corrupted . | . . . . . . . . . . . . . . . . Combat Hostiles . | . . . . . . . . . . . . . . . . Parts Fried . | . . . . . . . . . . . . . . . . Impact Corruptions . | . . . . . . . . . . . . . . . . Robots Melted . | . . . . . . . . . . . . . . . . Combat Hostiles . | . . . . . . . . . . . . . . . . Parts Melted 6 | . 2 . 3 . . . 1 . . . . . . . . Heat Transferred 4908 | . 1633 685 1332 37 . 111 222 259 . 74 296 . . 259 . Parts Sabotaged . | . . . . . . . . . . . . . . . . Parts Stolen . | . . . . . . . . . . . . . . . . Parts Stripped . | . . . . . . . . . . . . . . . . Power Chain Reactions . | . . . . . . . . . . . . . . . . Missiles Intercepted . | . . . . . . . . . . . . . . . . Alert | -11 -10 -9 -8 -7 -7 -7 -6 -6 -6 -5 -4 -3 -2 -1 -1 ------- Run | Jun Mat Mat Mat Fac Was Fac Fac Ext Cet Fac Fac Res Res Acc Com Peak Influence 1130 | . 155 429 234 . . 609 1130 1127 613 453 172 373 167 708 780 Initial 613 | . . 38 49 . . . 298 511 613 343 46 90 141 10 414 Average 222 | . 62 198 82 . . 222 642 936 613 245 89 229 50 326 564 Maximum Alert Level 4 | . . 2 1 . . 2 4 4 2 2 . 1 . 3 3 Low Security (%) 63 | 100 100 49 91 100 100 43 . . . 45 100 46 100 31 . Level 1 19 | . . 45 8 . . 39 42 . . 32 . 53 . 30 . Level 2 10 | . . 5 . . . 16 20 9 100 21 . . . 37 77 Level 3 5 | . . . . . . . 33 73 . . . . . . 22 Level 4 1 | . . . . . . . 3 17 . . . . . . . Level 5 . | . . . . . . . . . . . . . . . . High Security . | . . . . . . . . . . . . . . . . Max Security . | . . . . . . . . . . . . . . . . Squads Dispatched 38 | . 4 3 1 . . 2 5 5 . 5 3 1 2 2 5 Investigation 6 | . . 1 1 . . . 1 2 . . . . 1 . . Extermination 5 | . . . . . . . . . . 1 2 . . 1 1 Reinforcement 26 | . 4 2 . . . 2 3 3 . 4 1 1 1 1 4 Assault 1 | . . . . . . . 1 . . . . . . . . Garrison . | . . . . . . . . . . . . . . . . Intercept . | . . . . . . . . . . . . . . . . Searches Triggered . | . . . . . . . . . . . . . . . . Construction Impeded 2 | . . 1 . . . . . 1 . . . . . . . Haulers Reinforced . | . . . . . . . . . . . . . . . . Active Scanning Responses . | . . . . . . . . . . . . . . . . Cargo Convoy Interrupts . | . . . . . . . . . . . . . . . . Stealth | -11 -10 -9 -8 -7 -7 -7 -6 -6 -6 -5 -4 -3 -2 -1 -1 --------- Run | Jun Mat Mat Mat Fac Was Fac Fac Ext Cet Fac Fac Res Res Acc Com Distress Signals 17 | . 1 . 3 . . . 2 2 1 4 1 2 . . 1 Communications Jammed 9 | . . . . . . . . . . 2 4 1 2 . . Distress Signals 9 | . . . . . . . . . . 2 4 1 2 . . Times Spotted 258 | . 32 32 17 1 . 5 14 31 4 19 21 13 7 32 30 Peak Tracking Total 12 | . 4 5 4 1 . 2 5 6 5 4 8 10 3 8 12 Tactical Retreats 49 | . 2 1 . . . 1 1 3 . 9 9 7 1 8 7 Traps | -11 -10 -9 -8 -7 -7 -7 -6 -6 -6 -5 -4 -3 -2 -1 -1 ------- Run | Jun Mat Mat Mat Fac Was Fac Fac Ext Cet Fac Fac Res Res Acc Com Traps Triggered 21 | . 2 3 1 1 . . . 4 . 4 3 2 . 1 . Indirectly . | . . . . . . . . . . . . . . . . Trap Hack Attempts . | . . . . . . . . . . . . . . . . Triggered . | . . . . . . . . . . . . . . . . Disarmed . | . . . . . . . . . . . . . . . . Reprogrammed . | . . . . . . . . . . . . . . . . Reused . | . . . . . . . . . . . . . . . . Traps Extracted . | . . . . . . . . . . . . . . . . Installed . | . . . . . . . . . . . . . . . . Triggered . | . . . . . . . . . . . . . . . . Machines | -11 -10 -9 -8 -7 -7 -7 -6 -6 -6 -5 -4 -3 -2 -1 -1 ---------- Run | Jun Mat Mat Mat Fac Was Fac Fac Ext Cet Fac Fac Res Res Acc Com Machines Disabled 31 | . 2 2 1 . . 8 2 4 . . 1 3 . 6 2 Max in Single Turn 3 | . 1 1 1 . . . 1 3 . . 1 1 . 1 1 Garrison Access 4 | . . . . . . . 2 . . . . . 1 1 . Energy Cycler 1 | . . . . . . . . 1 . . . . . . . Machines Repaired . | . . . . . . . . . . . . . . . . Machines Sabotaged . | . . . . . . . . . . . . . . . . Overloaded Fab Kills . | . . . . . . . . . . . . . . . . Hacking | -11 -10 -9 -8 -7 -7 -7 -6 -6 -6 -5 -4 -3 -2 -1 -1 --------- Run | Jun Mat Mat Mat Fac Was Fac Fac Ext Cet Fac Fac Res Res Acc Com Machines Accessed 42 | . 4 3 . . . . 3 6 . 7 3 4 7 2 3 Terminals 30 | . 4 3 . . . . 1 6 . 4 1 3 4 1 3 Fabricators 2 | . . . . . . . . . . 1 . . 1 . . Repair Stations . | . . . . . . . . . . . . . . . . Recycling Units 1 | . . . . . . . . . . . 1 . . . . Scanalyzers . | . . . . . . . . . . . . . . . . Garrison Access 9 | . . . . . . . 2 . . 2 1 1 2 1 . Total Hacks 75 | . 8 9 . . . . 4 12 . 13 5 7 9 2 6 Successful 30 | . 2 3 . . . . 2 5 . 6 2 3 4 1 2 Failed 45 | . 6 6 . . . . 2 7 . 7 3 4 5 1 4 Catastrophic 16 | . 2 3 . . . . 2 1 . 1 . 1 3 1 2 Database Lockouts . | . . . . . . . . . . . . . . . . Manual 24 | . 6 7 . . . . . 1 . 4 1 1 2 . 2 Terminals 61 | . 8 9 . . . . 1 12 . 10 2 6 6 1 6 Fabricators 2 | . . . . . . . . . . 1 . . 1 . . Repair Stations . | . . . . . . . . . . . . . . . . Recycling Units 2 | . . . . . . . . . . . 2 . . . . Scanalyzers . | . . . . . . . . . . . . . . . . Garrison Access 10 | . . . . . . . 3 . . 2 1 1 2 1 . Terminal Hacks 24 | . 2 3 . . . . 1 5 . 5 1 3 2 . 2 Record 6 | . . . . . . . . . . 1 . 2 1 . 2 Open Door 5 | . . . . . . . 1 4 . . . . . . . Alert Level 6 | . 1 2 . . . . . 1 . 1 1 . . . . Unreport Threat 5 | . 1 1 . . . . . . . 1 . 1 1 . . Locate Traps 1 | . . . . . . . . . . 1 . . . . . Zone Layout 1 | . . . . . . . . . . 1 . . . . . Fabricator Hacks 2 | . . . . . . . . . . 1 . . 1 . . Network Status 2 | . . . . . . . . . . 1 . . 1 . . Repair Station Hacks . | . . . . . . . . . . . . . . . . Recycling Unit Hacks 1 | . . . . . . . . . . . 1 . . . . Retrieve Matter 1 | . . . . . . . . . . . 1 . . . . Scanalyzer . | . . . . . . . . . . . . . . . . Garrison Access Hacks 3 | . . . . . . . 1 . . . . . 1 1 . Seal Access 3 | . . . . . . . 1 . . . . . 1 1 . Unauthorized Hacks . | . . . . . . . . . . . . . . . . Terminals . | . . . . . . . . . . . . . . . . Fabricators . | . . . . . . . . . . . . . . . . Repair Stations . | . . . . . . . . . . . . . . . . Recycling Units . | . . . . . . . . . . . . . . . . Scanalyzers . | . . . . . . . . . . . . . . . . Garrison Access . | . . . . . . . . . . . . . . . . Data Cores Recovered 2 | . . . . . . . 1 . . . 1 . . . . Used . | . . . . . . . . . . . . . . . . Hacking Detections 36 | . 3 3 . . . . 2 5 . 6 3 4 5 1 4 Full Trace Events 4 | . . . . . . . 1 2 . . . . 1 . . Feedback Events . | . . . . . . . . . . . . . . . . Feedback Blocked . | . . . . . . . . . . . . . . . . Robot Schematics Acquired . | . . . . . . . . . . . . . . . . Robots Built . | . . . . . . . . . . . . . . . . Authchips . | . . . . . . . . . . . . . . . . Time . | . . . . . . . . . . . . . . . . Total Robot Build Rating . | . . . . . . . . . . . . . . . . Part Schematics Acquired . | . . . . . . . . . . . . . . . . Parts Built . | . . . . . . . . . . . . . . . . Authchips . | . . . . . . . . . . . . . . . . Time . | . . . . . . . . . . . . . . . . Total Part Build Rating . | . . . . . . . . . . . . . . . . Parts Repaired . | . . . . . . . . . . . . . . . . Time . | . . . . . . . . . . . . . . . . Parts Recycled . | . . . . . . . . . . . . . . . . Recycled Matter . | . . . . . . . . . . . . . . . . Retrieved Matter . | . . . . . . . . . . . . . . . . Retrieved Components . | . . . . . . . . . . . . . . . . Parts Scanalyzed . | . . . . . . . . . . . . . . . . Part Schematics Acquired . | . . . . . . . . . . . . . . . . Parts Damaged . | . . . . . . . . . . . . . . . . Bothacking | -11 -10 -9 -8 -7 -7 -7 -6 -6 -6 -5 -4 -3 -2 -1 -1 ------------ Run | Jun Mat Mat Mat Fac Was Fac Fac Ext Cet Fac Fac Res Res Acc Com Used RIF Installer . | . . . . . . . . . . . . . . . . Robots Hacked . | . . . . . . . . . . . . . . . . Non-combat . | . . . . . . . . . . . . . . . . Combat . | . . . . . . . . . . . . . . . . Robot Hacks Applied . | . . . . . . . . . . . . . . . . Relay Couplers Released . | . . . . . . . . . . . . . . . . Fabnet Peak Effective % . | . . . . . . . . . . . . . . . . Robots Rewired . | . . . . . . . . . . . . . . . . Allies Hacked . | . . . . . . . . . . . . . . . . Hacks Repelled . | . . . . . . . . . . . . . . . . Allies | -11 -10 -9 -8 -7 -7 -7 -6 -6 -6 -5 -4 -3 -2 -1 -1 -------- Run | Jun Mat Mat Mat Fac Was Fac Fac Ext Cet Fac Fac Res Res Acc Com Total Allies 25 | . . . . . 20 . . 5 . . . . . . . Largest Group 20 | . . . . . 20 20 17 8 . . . . . . . Highest-Rated Group 557 | . . . . . 557 557 498 243 . . . . . . . Highest-Rated Ally 159 | . . . . . 35 35 35 159 . . . . . . . Total Orders . | . . . . . . . . . . . . . . . . Ally Attacks 219 | . . . . . . 39 108 72 . . . . . . . Total Damage 6335 | . . . . . . 813 3212 2310 . . . . . . . Kills 47 | . . . . . . 8 17 22 . . . . . . . Allies Corrupted . | . . . . . . . . . . . . . . . . Allies Melted . | . . . . . . . . . . . . . . . . Intel | -11 -10 -9 -8 -7 -7 -7 -6 -6 -6 -5 -4 -3 -2 -1 -1 ------- Run | Jun Mat Mat Mat Fac Was Fac Fac Ext Cet Fac Fac Res Res Acc Com Robot Analysis Total . | . . . . . . . . . . . . . . . . Derelict Logs Recovered . | . . . . . . . . . . . . . . . . Drone Launches 2 | . . . . . . . . . . . . . . . 2 Drone Recoveries 2 | . . . . . . . . . . . . . . . 2 Exploration | -11 -10 -9 -8 -7 -7 -7 -6 -6 -6 -5 -4 -3 -2 -1 -1 ------------- Run | Jun Mat Mat Mat Fac Was Fac Fac Ext Cet Fac Fac Res Res Acc Com Turns Passed 8749 | 107 1502 1442 960 146 95 198 288 464 16 1292 698 399 420 357 365 Spaces Moved 11961 | 65 782 705 375 201 198 307 392 671 54 2958 1423 1326 1246 754 504 Core 40 | 11 . . . . . . . . . . 29 . . . . Treads 899 | 54 498 61 242 44 . . . . . . . . . . . Legs 1049 | . 284 632 133 . . . . . . . . . . . . Wheels 12 | . . 12 . . . . . . . . . . . . . Hover 19 | . . . . . . . . . . . . . . . 19 Flight 9942 | . . . . 157 198 307 392 671 54 2958 1394 1326 1246 754 485 Fastest Speed 17 | 50 120 110 160 23 23 23 26 23 29 24 21 19 25 17 20 Average Speed 50 | 141 145 162 204 55 23 24 27 30 29 26 28 21 25 33 52 Slowest Speed 330 | 160 160 260 330 162 23 101 99 99 29 99 200 25 28 172 125 Overloaded Moves 41 | . . . . . . . . . . . . . . 41 . Propulsion Burnouts . | . . . . . . . . . . . . . . . . Robots Hopped 34 | . . . . . . . . 5 . 19 1 3 2 1 3 Cave-ins Triggered . | . . . . . . . . . . . . . . . . Exploration Rate (%) 36 | 4 90 62 35 7 89 10 11 63 23 46 34 32 29 17 31 Regions Visited 15 Branch Regions 3 Pre-discovered Areas . | . . . . . . . . . . . . . . . . Known Exits Taken 11 | . 1 1 1 . . 1 1 1 1 1 1 1 1 . . Unknown Exits Taken 2 | 1 . . . . . . . . . . . . . 1 . Scrap Searched . | . . . . . . . . . . . . . . . . Spaces Dug 134 | . 22 . . . . . 4 27 . 26 21 3 15 2 14 Terrain Destroyed 418 | . 37 66 12 . . . 10 62 . 33 43 3 16 85 51 Melee 18 | . . . . . . . . . . . 1 3 . . 14 Projectile 97 | . . . 1 . . . 5 18 . 30 23 . 16 4 . AOE 303 | . 37 66 11 . . . 5 44 . 3 19 . . 81 37 Terrain Rammed . | . . . . . . . . . . . . . . . . Walls Destroyed . | . . . . . . . . . . . . . . . . Machines Disabled . | . . . . . . . . . . . . . . . . Actions | -11 -10 -9 -8 -7 -7 -7 -6 -6 -6 -5 -4 -3 -2 -1 -1 --------- Run | Jun Mat Mat Mat Fac Was Fac Fac Ext Cet Fac Fac Res Res Acc Com Total 14003 | 80 1017 882 489 236 247 422 554 882 53 3383 1660 1395 1330 820 553 Wait 1108 | . 132 39 25 2 48 99 135 118 . 292 136 26 43 12 1 Move 11882 | 64 781 704 374 201 197 306 391 661 53 2920 1420 1319 1241 751 499 Hop 31 | . . . . . . . . 4 . 18 1 3 2 1 2 Pick Up 125 | 10 9 34 11 4 1 2 3 1 . 13 9 4 7 10 7 Fast Attach 42 | . 1 1 7 2 . 1 1 3 . 13 4 4 2 1 2 Attach 78 | 6 6 11 3 9 . . 3 1 . 5 7 3 3 12 9 Detach 13 | . . . . 1 . 1 1 2 . 1 2 1 1 . 3 Swap 68 | . 9 10 6 5 . 2 1 4 . 11 10 2 5 1 2 Drop 106 | . 4 18 11 11 1 3 2 5 . 19 10 8 10 3 1 Fire 390 | . 74 65 52 1 . 8 17 41 . 55 33 . 16 24 4 Melee 63 | . . . . . . . . . . . 10 25 . 5 23 Ram . | . . . . . . . . . . . . . . . . Kick . | . . . . . . . . . . . . . . . . Crush 1 | . 1 . . . . . . . . . . . . . . Escape Stasis 96 | . . . . . . . . 42 . 36 18 . . . . Rewire . | . . . . . . . . . . . . . . . . Trap . | . . . . . . . . . . . . . . . . Miscellaneous . | . . . . . . . . . . . . . . . . Route ------- -11/Junkyard -10/Materials (discovered 4 exits: *Mat x2 / [*Min x2]) -9/Materials (discovered 5 exits: *Mat x2 / [*Min] / *Sto x2) -8/Materials -7/Factory -7/Waste -7/Factory -6/Factory -6/Extension (discovered 2 exits: *Fac / *Cet) -6/Cetus -5/Factory (discovered 2 exits: *Fac / *Upp) -4/Factory -3/Research -2/Research -1/Access -1/Command History --------- Turn | Location | Event 5 | -11/Junkyard | Discovered new exit (range 15) 108 | -11/Junkyard | Entered Materials 309 | -10/Materials | Build established: Mutant 403 | -10/Materials | Discovered new exit (range 14) 885 | -10/Materials | Discovered new exit (range 8) 953 | -10/Materials | Core integrity fell below 50% 1143 | -10/Materials | Core integrity fell below 20% 1211 | -10/Materials | Lost 3 parts (1p2n) 1226 | -10/Materials | Discovered new exit (range 7) 1585 | -10/Materials | Discovered new exit (range 14) 1607 | -10/Materials | Identified exit to Materials 1610 | -10/Materials | Entered another Materials area 1610 | -9/Materials | Evolved 2 slots: Propulsion x1, Utility x1 1863 | -9/Materials | Destroyed 7 combat bots 1867 | -9/Materials | Lost 5 parts (2n1u2w) 2273 | -9/Materials | Discovered new exit (range 7) 2344 | -9/Materials | Discovered new exit (range 10) 2359 | -9/Materials | Build established: Scavenger-Mutant 2361 | -9/Materials | Identified exit to Storage 2446 | -9/Materials | Core integrity fell below 50% 2790 | -9/Materials | Discovered new exit (range 8) 2936 | -9/Materials | Build established: Mutant 2976 | -9/Materials | Discovered exit to Storage (range 15) 3042 | -9/Materials | Discovered new exit (range 5) 3050 | -9/Materials | Identified exit to Materials 3052 | -9/Materials | Entered another Materials area 3052 | -8/Materials | Evolved 2 slots: Propulsion x1, Utility x1 3362 | -8/Materials | Lost 4 parts (2n1u1w) 3740 | -8/Materials | Discovered new exit (range 5) 3752 | -8/Materials | Identified exit to Factory 4012 | -8/Materials | Entered Factory 4012 | -7/Factory | Evolved 2 slots: Power x1, Propulsion x1 4158 | -7/Factory | Sucked down chute 4158 | -7/Factory | Entered Waste 4159 | -7/Waste | Joined by Warlord forces that had cleared the area 4186 | -7/Waste | Discovered new exit (range 12) 4253 | -7/Waste | Identified exit to Factory 4253 | -7/Waste | Entered Factory 4253 | -7/Factory | Accompanied by 20 allies 4312 | -7/Factory | Discovered new exit (range 12) 4315 | -7/Factory | Identified exit to Factory 4431 | -7/Factory | Build established: Scout 4451 | -7/Factory | Entered another Factory area 4451 | -6/Factory | Accompanied by 17 allies 4451 | -6/Factory | Evolved 2 slots: Propulsion x1, Utility x1 4661 | -6/Factory | Discovered new exit (range 14) 4666 | -6/Factory | Identified exit to Extension 4739 | -6/Factory | Entered Extension 4739 | -6/Extension | Accompanied by 6 allies 4744 | -6/Extension | Disrupted transfer network 4806 | -6/Extension | Rescued a captive Derelict 4807 | -6/Extension | Rescued a captive Derelict 5128 | -6/Extension | Spotted B-75 Beast 5129 | -6/Extension | Rescued A7 5158 | -6/Extension | Rescued a captive Derelict 5169 | -6/Extension | Rescued a captive Derelict 5186 | -6/Extension | Energy Cycler disabled 5200 | -6/Extension | Discovered new exit (range 10) 5201 | -6/Extension | Discovered new exit (range 5) 5203 | -6/Extension | Identified exit to Cetus 5203 | -6/Extension | Entered Cetus 5208 | -6/Cetus | Spotted Cetus Guard 5208 | -6/Cetus | Spotted Cetus Guard 5209 | -6/Cetus | Spotted Cetus Guard 5215 | -6/Cetus | Discovered new exit (range 16) 5219 | -6/Cetus | Identified exit to Factory 5219 | -6/Cetus | Entered Factory 5219 | -5/Factory | Evolved 2 slots: Utility x2 5231 | -5/Factory | Lost 3 parts (1p1n1u) 5951 | -5/Factory | Build established: Sprinter 6029 | -5/Factory | Discovered new exit (range 4) 6029 | -5/Factory | Identified exit to Upper Caves 6506 | -5/Factory | Discovered new exit (range 15) 6509 | -5/Factory | Identified exit to Factory 6511 | -5/Factory | Entered another Factory area 6511 | -4/Factory | Evolved 2 slots: Propulsion x1, Utility x1 6535 | -4/Factory | Spotted B-86 Titan 6966 | -4/Factory | Build established: Infiltrator-Sprinter 7138 | -4/Factory | Discovered new exit (range 4) 7139 | -4/Factory | Identified exit to Research 7209 | -4/Factory | Entered Research 7209 | -3/Research | Evolved 2 slots: Propulsion x2 7330 | -3/Research | Spotted B-86 Titan 7534 | -3/Research | Discovered new exit (range 8) 7536 | -3/Research | Identified exit to Research 7608 | -3/Research | Entered another Research area 7608 | -2/Research | Evolved 2 slots: Utility x2 7873 | -2/Research | Found Adv. Force Booster 8026 | -2/Research | Discovered new exit (range 3) 8027 | -2/Research | Identified exit to Access 8028 | -2/Research | Entered Access 8028 | -1/Access | Evolved 2 slots: Utility x2 8150 | -1/Access | Build established: Infiltrator-Scout 8164 | -1/Access | Spotted B-99 Colossus 8339 | -1/Access | Lost 12 parts (2p2n6u2w) 8355 | -1/Access | Found Enh. Force Lance 8365 | -1/Access | Spotted B-99 Colossus 8367 | -1/Access | Spotted B-99 Colossus 8379 | -1/Access | Discovered new exit (range 4) 8385 | -1/Access | Entered Command 8411 | -1/Command | Lost 7 parts (1p3n3u) 8494 | -1/Command | Found Fusion Bomb Launcher 8583 | -1/Command | Spotted Alpha 7 8583 | -1/Command | Spotted Striker 8583 | -1/Command | Spotted Alpha 7 8584 | -1/Command | Spotted Striker 8619 | -1/Command | Build established: Mutant 8700 | -1/Command | Core integrity fell below 50% 8708 | -1/Command | Spotted B-99 Colossus 8735 | -1/Command | Core integrity fell below 20% 8750 | -1/Command | Destroyed by Alpha 7 with Multirail Last Messages --------------- 08723_ Slug penetrates Wall. 08724_ Impulse Thruster Array destroyed. 08724_ Destroyed Imp. Antigrav System. 08724_ Penetrated by Slug. 08725_ Drone sends a signal. 08726_ Penetrated by Slug. 08726_ Adv. Drone Bay destroyed. 08727_ Fusion Bomb Launcher destroyed. 08727_ Penetrated by Slug. 08728_ Slug penetrates Wall. 08728_ Exp. Q-thruster destroyed. 08729_ Slug penetrates Wall. 08731_ P-80 Master resets P-80 Master, system corruption cleaned. 08731_ Penetrated by Slug. 08733_ Slug penetrates Wall. 08733_ Penetrated by Slug. 08742_ Acquired Impulse Thruster Array. 08744_ Acquired 2 matter. 08746_ Slug penetrates Wall. 08748_ Penetrated by Slug. Map ----- +----------------------------------------------------+ | ?????????????????????????????????????????????????? | | ???????????????????????????????????????????????? | | ??????????????????????????????????????????????# ! | | ??????????????????????????????????????????????# ! | | ??????????????????????????????????????????????# ! | | ??????????????????????????????????????????????# | | ??????????????????????????????????????????????# | | ??????????????????????????????????????????????# | | ??????????????????????????????????????????????# | | ??????????????????????????????????????????????# | | ????????????????????????? ???????????????????# | | ????????????????????????? ???????????????????# | | ????????????????????????? ???????????????????# | | ????????????????????????# #??????????????????# | | ????????????????????????# #??????????????????# | | ????????????????????????# +???????????????????? | | ????????????????????????# #######?????????????### | | ????????????????????????# ############### | | ????????????????????????# " | | ????????????????????????# " | | ????????????????????????# ########### | | ????????????????????????# !! ; #???????### | | ????????????????????????# !! #######?###?? | | ????????????????????????# !! ??? | | ????????????????????????# ???? | | ??????????????????????###@ """"????? | | ??????????????????????# BB """" #?? | | ??????????????????????# BB """" #?? | | ??????????????????????### """" ???? | | ????????????????????????# ??? | | ????????????????????????# #?? | | ????????????????????????# ########?? | | ????????????????????????# p% % h% ! | | ??????????????????????###p##;##;h | | ??????????????????????# ## "" | | ??????????????????????# ## # """" | | ??????????????????????# ## #??"""" = | | ??????????????????????# ## #???"" | | ??????????????????????# ## #??? ??? | | ??????????????????????# ## #???? "?? | | ??????????????????????# ! ## ####?##+##### | | ??????????????????????#########" | | ??????????????????????????????## ### | | ???????????????????????????????# #?? | | ???????????????????????????????# #?? | | ???????????????????????????????# "" #?? | | ???????????????????????????????# """" ### | | ???????????????????????????????# """" # | | ???????????????????????????????# "" # | | ???????????????????????????????# # | +----------------------------------------------------+ Best States ------------- Heat Dissipation 52 Energy Generation 51 Energy Capacity 1170 Matter Stores 300 Matter Capacity 300 Sight Range 16 Robot Scan Range 16 Terrain Scan Range 24 Terrain Scan Density 210 ECM Strength 2 Jamming Range 14 Power Amplification 30 Additional Mass Support 6 Armor Coverage 225 Propulsion Shielding 66 Phase Shifting 5 Evasion (%) 82 Core Analysis 6 Recoil Reduction 4 Particle Charging 20 Force Boost 40 Item Schematics ----------------- None Robot Schematics ------------------ None Fabricated ------------ Nothing Alien Tech Used ----------------- None Achievements -------------- We Are Legion Challenges ------------ None Game ------ Seed CloakingCloakingTreads Manual? 0 Play Time 03:19:12 Cumulative 64.7 hours Start 2023.03.14 @ 04:44:07 End 2023.03.14 @ 08:05:41 Sessions 3 Manual Loads 0 Difficulty Rogue Special Mode None Game No. 16 Rogue 16 Adventurer 0 Explorer 0 Win Type - Total 3 Types 3/0/0/0/0/0/0/0/0 Lore% 16 Gallery% 39 Achievement% 36 Wizard Run 0 Options --------- ASCII 0 Keyboard 0 Movement Mouse Keybinds 0 Fullscreen 2 Font 16/SmallcapsGlow Map View 75x55 Tactical HUD 1 Map Filters NONE Filters NONE Steam 1 RUN: 2658b7cb-705b-4154-b1a5-7705f8e39671